[Event "Titled Tuesday Blitz May 25 2021"]
[White "Praggnanandhaa R"]
[Black "Kazakouski, Valery"]
[WhiteFideId "25059530"]
[BlackFideId "13507443"]
[WhiteElo "2555"]
[BlackElo "2546"]
[Result "0-1"]
[Round "05"]
[TimeControl "180+1"]
[Date "2021.05.25"]
[WhiteClock "0:00:12"]
[BlackClock "0:00:15"]

1. Nf3 {[%clk 0:02:57]}  Nf6 {[%clk 0:02:59]} 2. d4 {[%clk 0:02:57]}  e6 {[%clk 0:02:59]} 3. Bf4 {[%clk 0:02:56]}  b6 {[%clk 0:02:59]} 4. e3 {[%clk 0:02:52]}  Be7 {[%clk 0:02:59]} 5. h3 {[%clk 0:02:49]}  O-O {[%clk 0:02:58]} 6. c4 {[%clk 0:02:45]}  Bb4+ {[%clk 0:02:42]} 7. Nc3 {[%clk 0:02:41]}  Bb7 {[%clk 0:02:36]} 8. Bd3 {[%clk 0:02:30]}  Be4 {[%clk 0:02:34]} 9. Be2 {[%clk 0:02:21]}  d6 {[%clk 0:02:34]} 10. O-O {[%clk 0:02:21]}  Bxc3 {[%clk 0:02:34]} 11. bxc3 {[%clk 0:02:21]}  Nbd7 {[%clk 0:02:35]} 12. Bh2 {[%clk 0:02:14]}  Qe7 {[%clk 0:02:35]} 13. Nd2 {[%clk 0:02:05]}  Bb7 {[%clk 0:02:35]} 14. f3 {[%clk 0:01:56]}  c5 {[%clk 0:02:29]} 15. Bd3 {[%clk 0:01:42]}  Rac8 {[%clk 0:02:23]} 16. a4 {[%clk 0:01:33]}  d5 {[%clk 0:02:02]} 17. Qe2 {[%clk 0:01:31]}  e5 {[%clk 0:01:59]} 18. Rae1 {[%clk 0:00:53]}  Rfe8 {[%clk 0:01:49]} 19. Kh1 {[%clk 0:00:39]}  h6 {[%clk 0:01:40]} 20. Qd1 {[%clk 0:00:36]}  Ba6 {[%clk 0:01:38]} 21. Qb3 {[%clk 0:00:29]}  Qf8 {[%clk 0:01:30]} 22. Be2 {[%clk 0:00:25]}  exd4 {[%clk 0:01:26]} 23. cxd4 {[%clk 0:00:24]}  cxd4 {[%clk 0:01:25]} 24. exd4 {[%clk 0:00:24]}  Rxe2 {[%clk 0:01:17]} 25. Rxe2 {[%clk 0:00:23]}  dxc4 {[%clk 0:01:17]} 26. Qc3 {[%clk 0:00:12]}  Nd5 {[%clk 0:01:17]} 27. Qc2 {[%clk 0:00:13]}  c3 {[%clk 0:01:17]} 28. Ne4 {[%clk 0:00:13]}  Bxe2 {[%clk 0:01:16]} 29. Qxe2 {[%clk 0:00:14]}  Qa3 {[%clk 0:00:42]} 30. Nd6 {[%clk 0:00:10]}  Rf8 {[%clk 0:00:42]} 31. Bg3 {[%clk 0:00:05]}  Qxa4 {[%clk 0:00:38]} 32. Kh2 {[%clk 0:00:05]}  Qc6 {[%clk 0:00:38]} 33. Ra1 {[%clk 0:00:04]}  a5 {[%clk 0:00:38]} 34. Nf5 {[%clk 0:00:04]}  N7f6 {[%clk 0:00:35]} 35. Be5 {[%clk 0:00:04]}  Re8 {[%clk 0:00:34]} 36. Qa2 {[%clk 0:00:03]}  Nd7 {[%clk 0:00:29]} 37. Bxg7 {[%clk 0:00:03]}  Qe6 {[%clk 0:00:22]} 38. Qc2 {[%clk 0:00:03]}  Nb4 {[%clk 0:00:20]} 39. Qf2 {[%clk 0:00:02]}  Qxf5 {[%clk 0:00:19]} 40. Bxh6 {[%clk 0:00:02]}  Qg6 {[%clk 0:00:16]} 41. Be3 {[%clk 0:00:02]}  Nd5 {[%clk 0:00:16]} 42. Bc1 {[%clk 0:00:01]}  N7f6 {[%clk 0:00:15]} 43. Ra3 {[%clk 0:00:01]}  Qd3 {[%clk 0:00:14]} 44. Qg3+ {[%clk 0:00:02]}  Qg6 {[%clk 0:00:14]} 45. Qd6 {[%clk 0:00:02]}  Re2 {[%clk 0:00:13]} 46. Qb8+ {[%clk 0:00:01]}  Kh7 {[%clk 0:00:13]} 47. Qg3 {[%clk 0:00:02]}  Qxg3+ {[%clk 0:00:13]} 48. Kxg3 {[%clk 0:00:03]}  Re1 {[%clk 0:00:13]} 49. Bg5 {[%clk 0:00:03]}  c2 {[%clk 0:00:13]} 50. Ra2 {[%clk 0:00:02]}  c1=Q {[%clk 0:00:13]} 51. Bxc1 {[%clk 0:00:03]}  Rxc1 {[%clk 0:00:13]} 52. Kh4 {[%clk 0:00:04]}  Rc4 {[%clk 0:00:13]} 53. g4 {[%clk 0:00:04]}  a4 {[%clk 0:00:13]} 54. g5 {[%clk 0:00:03]}  Rxd4+ {[%clk 0:00:13]} 55. Kg3 {[%clk 0:00:03]}  Nh5+ {[%clk 0:00:14]} 56. Kg2 {[%clk 0:00:04]}  Kg6 {[%clk 0:00:14]} 57. h4 {[%clk 0:00:04]}  Rxh4 {[%clk 0:00:14]} 58. f4 {[%clk 0:00:05]}  Rxf4 {[%clk 0:00:14]} 59. Re2 {[%clk 0:00:05]}  Rg4+ {[%clk 0:00:14]} 60. Kh3 {[%clk 0:00:05]}  Nhf4+ {[%clk 0:00:14]} 61. Kxg4 {[%clk 0:00:05]}  Nxe2 {[%clk 0:00:15]} 62. Kf3 {[%clk 0:00:06]}  Nd4+ {[%clk 0:00:15]} 63. Ke4 {[%clk 0:00:07]}  a3 {[%clk 0:00:15]} 64. Ke5 {[%clk 0:00:08]}  a2 {[%clk 0:00:15]} 65. Ke4 {[%clk 0:00:09]}  a1=Q {[%clk 0:00:15]} 66. Ke5 {[%clk 0:00:09]}  Ne6+ {[%clk 0:00:15]} 67. Kd6 {[%clk 0:00:10]}  Qa3+ {[%clk 0:00:15]} 68. Ke5 {[%clk 0:00:10]}  Ne7 {[%clk 0:00:14]} 69. Ke4 {[%clk 0:00:10]}  Qd6 {[%clk 0:00:15]} 70. Ke3 {[%clk 0:00:10]}  Qf4+ {[%clk 0:00:15]} 71. Kd3 {[%clk 0:00:11]}  Nc5+ {[%clk 0:00:14]} 72. Kc3 {[%clk 0:00:11]}  Nd5+ {[%clk 0:00:15]} 73. Kc2 {[%clk 0:00:12]}  Qc4+ {[%clk 0:00:15]} 74. Kd2 {[%clk 0:00:12]}  Qd3+ {[%clk 0:00:15]} 0-1


[Site "https://www.chess.com"]

[Event "Titled Tuesday Blitz May 25 2021"]
[White "Pridorozhni, Aleksei"]
[Black "Hess, Robert"]
[WhiteFideId "4127870"]
[BlackFideId "2022036"]
[WhiteElo "2565"]
[BlackElo "2557"]
[Result "1-0"]
[Round "05"]
[TimeControl "180+1"]
[Date "2021.05.25"]
[WhiteClock "0:00:59"]
[BlackClock "0:00:01"]

1. e4 {[%clk 0:03:00]}  d6 {[%clk 0:02:58]} 2. d4 {[%clk 0:03:00]}  Nf6 {[%clk 0:02:58]} 3. f3 {[%clk 0:03:00]}  c6 {[%clk 0:02:58]} 4. c4 {[%clk 0:03:00]}  e5 {[%clk 0:02:55]} 5. d5 {[%clk 0:03:00]}  Be7 {[%clk 0:02:54]} 6. Nc3 {[%clk 0:03:00]}  O-O {[%clk 0:02:55]} 7. Be3 {[%clk 0:03:00]}  cxd5 {[%clk 0:02:42]} 8. cxd5 {[%clk 0:03:01]}  Ne8 {[%clk 0:02:38]} 9. Qd2 {[%clk 0:02:54]}  f5 {[%clk 0:02:33]} 10. Bd3 {[%clk 0:02:52]}  Bh4+ {[%clk 0:01:57]} 11. g3 {[%clk 0:02:51]}  Be7 {[%clk 0:01:55]} 12. O-O-O {[%clk 0:02:44]}  Na6 {[%clk 0:01:44]} 13. h3 {[%clk 0:02:24]}  Nc5 {[%clk 0:01:25]} 14. Bc2 {[%clk 0:02:20]}  b6 {[%clk 0:01:24]} 15. g4 {[%clk 0:02:14]}  fxe4 {[%clk 0:01:13]} 16. fxe4 {[%clk 0:02:14]}  Ba6 {[%clk 0:01:04]} 17. b4 {[%clk 0:02:03]}  Nd7 {[%clk 0:00:58]} 18. Nge2 {[%clk 0:02:01]}  Rc8 {[%clk 0:00:56]} 19. Ng3 {[%clk 0:02:00]}  Rf3 {[%clk 0:00:52]} 20. Nf5 {[%clk 0:01:57]}  Bf6 {[%clk 0:00:29]} 21. b5 {[%clk 0:01:52]}  Bb7 {[%clk 0:00:15]} 22. Rdf1 {[%clk 0:01:51]}  Rf4 {[%clk 0:00:10]} 23. Ne2 {[%clk 0:01:46]}  g6 {[%clk 0:00:09]} 24. Nh6+ {[%clk 0:01:29]}  Kg7 {[%clk 0:00:09]} 25. Nxf4 {[%clk 0:01:29]}  exf4 {[%clk 0:00:10]} 26. Bxf4 {[%clk 0:01:30]}  Bc3 {[%clk 0:00:05]} 27. Qf2 {[%clk 0:01:28]}  Nef6 {[%clk 0:00:05]} 28. g5 {[%clk 0:01:12]}  Nxe4 {[%clk 0:00:04]} 29. Bxe4 {[%clk 0:01:02]}  Bd4+ {[%clk 0:00:04]} 30. Kb1 {[%clk 0:01:03]}  Bxf2 {[%clk 0:00:04]} 31. Rxf2 {[%clk 0:01:04]}  Nc5 {[%clk 0:00:02]} 32. Bc2 {[%clk 0:01:00]}  Rc7 {[%clk 0:00:02]} 33. Bc1 {[%clk 0:00:59]}  Qe8 {[%clk 0:00:01]} 34. Bb2+ {[%clk 0:00:59]} 1-0


[Site "https://www.chess.com"]

[Event "Titled Tuesday Blitz May 25 2021"]
[White "Remizov, Yaroslav"]
[Black "Golizadeh, Asghar"]
[WhiteFideId "34134015"]
[BlackFideId "12505269"]
[WhiteElo "2367"]
[BlackElo "2403"]
[Result "1-0"]
[Round "05"]
[TimeControl "180+1"]
[Date "2021.05.25"]
[WhiteClock "0:00:26"]
[BlackClock "0:00:23"]

1. Nc3 {[%clk 0:01:32]}  e6 {[%clk 0:02:54]} 2. g3 {[%clk 0:01:25]}  d5 {[%clk 0:02:54]} 3. Bg2 {[%clk 0:01:25]}  c5 {[%clk 0:02:54]} 4. e3 {[%clk 0:01:24]}  Nc6 {[%clk 0:02:54]} 5. d4 {[%clk 0:01:23]}  Nf6 {[%clk 0:02:53]} 6. Nge2 {[%clk 0:01:23]}  Be7 {[%clk 0:02:51]} 7. O-O {[%clk 0:01:23]}  O-O {[%clk 0:02:52]} 8. h3 {[%clk 0:01:21]}  b6 {[%clk 0:02:52]} 9. b3 {[%clk 0:01:19]}  Bb7 {[%clk 0:02:51]} 10. Bb2 {[%clk 0:01:19]}  Rc8 {[%clk 0:02:51]} 11. dxc5 {[%clk 0:01:18]}  bxc5 {[%clk 0:02:48]} 12. Na4 {[%clk 0:01:18]}  Qd6 {[%clk 0:02:38]} 13. c4 {[%clk 0:01:16]}  Rfd8 {[%clk 0:02:29]} 14. cxd5 {[%clk 0:01:13]}  Nxd5 {[%clk 0:02:29]} 15. Rc1 {[%clk 0:01:10]}  Ne5 {[%clk 0:02:05]} 16. Nf4 {[%clk 0:00:55]}  Nxf4 {[%clk 0:01:58]} 17. Bxb7 {[%clk 0:00:51]}  Nxh3+ {[%clk 0:01:53]} 18. Kg2 {[%clk 0:00:51]}  Qc7 {[%clk 0:01:53]} 19. Bxc8 {[%clk 0:00:39]}  Rxd1 {[%clk 0:01:42]} 20. Rfxd1 {[%clk 0:00:39]}  Ng5 {[%clk 0:01:28]} 21. Nxc5 {[%clk 0:00:33]}  Qc6+ {[%clk 0:01:27]} 22. e4 {[%clk 0:00:30]}  Nxe4 {[%clk 0:01:21]} 23. Bb7 {[%clk 0:00:30]}  Qb6 {[%clk 0:00:42]} 24. Bxe4 {[%clk 0:00:29]}  Bxc5 {[%clk 0:00:35]} 25. Rxc5 {[%clk 0:00:28]}  f6 {[%clk 0:00:26]} 26. Bxe5 {[%clk 0:00:25]}  Qxc5 {[%clk 0:00:23]} 27. Rd8+ {[%clk 0:00:25]}  Kf7 {[%clk 0:00:23]} 28. Bd6 {[%clk 0:00:26]} 1-0


[Site "https://www.chess.com"]

[Event "Titled Tuesday Blitz May 25 2021"]
[White "Sadovsky, Artem"]
[Black "Tronenkovs, Valdis"]
[WhiteFideId "4155840"]
[BlackFideId "11601558"]
[WhiteElo "2476"]
[BlackElo "2232"]
[Result "1-0"]
[Round "05"]
[TimeControl "180+1"]
[Date "2021.05.25"]
[WhiteClock "0:00:03"]
[BlackClock "0:00:04"]

1. Nf3 {[%clk 0:02:52]}  Nf6 {[%clk 0:02:59]} 2. g3 {[%clk 0:02:51]}  e6 {[%clk 0:02:58]} 3. Bg2 {[%clk 0:02:52]}  d5 {[%clk 0:02:59]} 4. O-O {[%clk 0:02:52]}  Be7 {[%clk 0:02:59]} 5. c4 {[%clk 0:02:52]}  O-O {[%clk 0:02:59]} 6. b3 {[%clk 0:02:53]}  d4 {[%clk 0:02:58]} 7. Bb2 {[%clk 0:02:45]}  c5 {[%clk 0:02:58]} 8. e3 {[%clk 0:02:45]}  Nc6 {[%clk 0:02:57]} 9. exd4 {[%clk 0:02:40]}  cxd4 {[%clk 0:02:58]} 10. Re1 {[%clk 0:02:40]}  Re8 {[%clk 0:02:45]} 11. d3 {[%clk 0:02:38]}  Bb4 {[%clk 0:02:39]} 12. Nbd2 {[%clk 0:02:38]}  e5 {[%clk 0:02:37]} 13. a3 {[%clk 0:02:37]}  Bxd2 {[%clk 0:02:32]} 14. Qxd2 {[%clk 0:02:38]}  Nd7 {[%clk 0:01:25]} 15. b4 {[%clk 0:02:37]}  f6 {[%clk 0:01:25]} 16. Qe2 {[%clk 0:02:25]}  Ne7 {[%clk 0:01:23]} 17. c5 {[%clk 0:02:05]}  Nf8 {[%clk 0:01:15]} 18. Nxe5 {[%clk 0:01:53]}  fxe5 {[%clk 0:01:13]} 19. Qxe5 {[%clk 0:01:54]}  Nfg6 {[%clk 0:00:20]} 20. Bd5+ {[%clk 0:01:21]}  Qxd5 {[%clk 0:00:20]} 21. Qxd5+ {[%clk 0:01:21]}  Nxd5 {[%clk 0:00:21]} 22. Rxe8+ {[%clk 0:01:20]}  Kf7 {[%clk 0:00:21]} 23. Rae1 {[%clk 0:01:19]}  Nc7 {[%clk 0:00:21]} 24. Rd8 {[%clk 0:01:15]}  Bf5 {[%clk 0:00:20]} 25. Rxa8 {[%clk 0:01:10]}  Nxa8 {[%clk 0:00:21]} 26. Bxd4 {[%clk 0:01:01]}  Bxd3 {[%clk 0:00:21]} 27. Rd1 {[%clk 0:00:41]}  Bb5 {[%clk 0:00:20]} 28. a4 {[%clk 0:00:35]}  Bxa4 {[%clk 0:00:17]} 29. Ra1 {[%clk 0:00:35]}  Bc6 {[%clk 0:00:17]} 30. Rxa7 {[%clk 0:00:36]}  Nc7 {[%clk 0:00:18]} 31. Bb2 {[%clk 0:00:28]}  Ne7 {[%clk 0:00:17]} 32. Ra1 {[%clk 0:00:20]}  Ned5 {[%clk 0:00:17]} 33. Re1 {[%clk 0:00:19]}  Nxb4 {[%clk 0:00:10]} 34. Bxg7 {[%clk 0:00:18]}  Nd3 {[%clk 0:00:10]} 35. Re3 {[%clk 0:00:14]}  Nxc5 {[%clk 0:00:10]} 36. Be5 {[%clk 0:00:15]}  N7e6 {[%clk 0:00:10]} 37. f4 {[%clk 0:00:15]}  b5 {[%clk 0:00:09]} 38. f5 {[%clk 0:00:15]}  Nd8 {[%clk 0:00:07]} 39. Rc3 {[%clk 0:00:14]}  Ndb7 {[%clk 0:00:07]} 40. Bd4 {[%clk 0:00:14]}  b4 {[%clk 0:00:07]} 41. Rc1 {[%clk 0:00:15]}  b3 {[%clk 0:00:06]} 42. Bxc5 {[%clk 0:00:11]}  b2 {[%clk 0:00:06]} 43. Rb1 {[%clk 0:00:12]}  Nxc5 {[%clk 0:00:07]} 44. Rxb2 {[%clk 0:00:13]}  Nd3 {[%clk 0:00:07]} 45. Rd2 {[%clk 0:00:09]}  Ne5 {[%clk 0:00:07]} 46. Kf2 {[%clk 0:00:09]}  Kf6 {[%clk 0:00:07]} 47. h3 {[%clk 0:00:05]}  Kxf5 {[%clk 0:00:07]} 48. g4+ {[%clk 0:00:05]}  Kf4 {[%clk 0:00:07]} 49. Rd4+ {[%clk 0:00:04]}  Kg5 {[%clk 0:00:07]} 50. Kg3 {[%clk 0:00:04]}  Kf6 {[%clk 0:00:06]} 51. h4 {[%clk 0:00:03]}  h6 {[%clk 0:00:07]} 52. Rd6+ {[%clk 0:00:03]}  Kg7 {[%clk 0:00:06]} 53. Re6 {[%clk 0:00:04]}  Nxg4 {[%clk 0:00:04]} 54. Rxc6 {[%clk 0:00:03]}  Nf6 {[%clk 0:00:05]} 55. Kf4 {[%clk 0:00:03]}  Kf7 {[%clk 0:00:03]} 56. Kf5 {[%clk 0:00:04]}  Ng8 {[%clk 0:00:03]} 57. Rc7+ {[%clk 0:00:04]}  Ne7+ {[%clk 0:00:03]} 58. Ke5 {[%clk 0:00:04]}  Kf8 {[%clk 0:00:03]} 59. h5 {[%clk 0:00:05]}  Kf7 {[%clk 0:00:03]} 60. Kd6 {[%clk 0:00:02]}  Kf6 {[%clk 0:00:03]} 61. Rxe7 {[%clk 0:00:03]}  Kg5 {[%clk 0:00:04]} 62. Re5+ {[%clk 0:00:03]}  Kf4 {[%clk 0:00:04]} 63. Ke6 {[%clk 0:00:03]} 1-0


[Site "https://www.chess.com"]

[Event "Titled Tuesday Blitz May 25 2021"]
[White "Senft, Sean"]
[Black "Djordjevic, Vuk"]
[WhiteFideId "2044960"]
[BlackFideId "902098"]
[WhiteElo "1881"]
[BlackElo "2463"]
[Result "0-1"]
[Round "05"]
[TimeControl "180+1"]
[Date "2021.05.25"]
[WhiteClock "0:00:19"]
[BlackClock "0:00:11"]

1. d4 {[%clk 0:03:00]}  e6 {[%clk 0:02:59]} 2. c4 {[%clk 0:03:01]}  Nf6 {[%clk 0:02:58]} 3. Nc3 {[%clk 0:03:02]}  Bb4 {[%clk 0:02:58]} 4. Nf3 {[%clk 0:03:02]}  O-O {[%clk 0:02:58]} 5. Bg5 {[%clk 0:03:03]}  d5 {[%clk 0:02:55]} 6. e3 {[%clk 0:03:02]}  c6 {[%clk 0:02:53]} 7. cxd5 {[%clk 0:03:00]}  cxd5 {[%clk 0:02:47]} 8. Bd3 {[%clk 0:03:00]}  Qa5 {[%clk 0:02:29]} 9. Qb3 {[%clk 0:02:37]}  Ne4 {[%clk 0:02:25]} 10. Rc1 {[%clk 0:02:32]}  Nd7 {[%clk 0:01:42]} 11. O-O {[%clk 0:02:30]}  Bxc3 {[%clk 0:01:37]} 12. bxc3 {[%clk 0:02:29]}  Nxg5 {[%clk 0:01:37]} 13. Nxg5 {[%clk 0:02:29]}  h6 {[%clk 0:01:37]} 14. Nf3 {[%clk 0:02:28]}  Nb6 {[%clk 0:01:35]} 15. Bb1 {[%clk 0:02:22]}  Bd7 {[%clk 0:01:29]} 16. Ne5 {[%clk 0:02:21]}  Ba4 {[%clk 0:01:13]} 17. Qb2 {[%clk 0:02:08]}  f6 {[%clk 0:01:12]} 18. Ng6 {[%clk 0:02:08]}  Rf7 {[%clk 0:01:09]} 19. Rfe1 {[%clk 0:01:59]}  Rc7 {[%clk 0:01:05]} 20. Nf4 {[%clk 0:01:47]}  Re8 {[%clk 0:00:54]} 21. Qd2 {[%clk 0:01:37]}  e5 {[%clk 0:00:41]} 22. Nh5 {[%clk 0:01:32]}  Nc4 {[%clk 0:00:30]} 23. Qe2 {[%clk 0:01:29]}  e4 {[%clk 0:00:29]} 24. Qg4 {[%clk 0:01:26]}  Qb6 {[%clk 0:00:29]} 25. f3 {[%clk 0:01:19]}  Nd2 {[%clk 0:00:22]} 26. Ng3 {[%clk 0:01:12]}  Nxb1 {[%clk 0:00:16]} 27. Rxb1 {[%clk 0:01:13]}  Qe6 {[%clk 0:00:16]} 28. Qg6 {[%clk 0:01:04]}  exf3 {[%clk 0:00:13]} 29. gxf3 {[%clk 0:01:02]}  Qf7 {[%clk 0:00:13]} 30. Qg4 {[%clk 0:01:01]}  Bc2 {[%clk 0:00:08]} 31. Rbc1 {[%clk 0:00:59]}  Rxc3 {[%clk 0:00:08]} 32. Nf5 {[%clk 0:00:59]}  Bxf5 {[%clk 0:00:07]} 33. Qxf5 {[%clk 0:00:57]}  Rexe3 {[%clk 0:00:07]} 34. Rxc3 {[%clk 0:00:53]}  Rxe1+ {[%clk 0:00:05]} 35. Kf2 {[%clk 0:00:54]}  Re8 {[%clk 0:00:06]} 36. Qf4 {[%clk 0:00:53]}  Qe7 {[%clk 0:00:05]} 37. Rc7 {[%clk 0:00:35]}  Qe1+ {[%clk 0:00:05]} 38. Kg2 {[%clk 0:00:34]}  Re2+ {[%clk 0:00:04]} 39. Kh3 {[%clk 0:00:34]}  Re7 {[%clk 0:00:04]} 40. Rc8+ {[%clk 0:00:31]}  Kf7 {[%clk 0:00:04]} 41. Qf5 {[%clk 0:00:26]}  Qe6 {[%clk 0:00:04]} 42. Qxe6+ {[%clk 0:00:25]}  Kxe6 {[%clk 0:00:05]} 43. Kg4 {[%clk 0:00:25]}  g6 {[%clk 0:00:04]} 44. Rg8 {[%clk 0:00:25]}  h5+ {[%clk 0:00:04]} 45. Kf4 {[%clk 0:00:25]}  g5+ {[%clk 0:00:04]} 46. Ke3 {[%clk 0:00:26]}  Kf5+ {[%clk 0:00:05]} 47. Kf2 {[%clk 0:00:25]}  Kf4 {[%clk 0:00:05]} 48. Ra8 {[%clk 0:00:24]}  Rc7 {[%clk 0:00:05]} 49. Rxa7 {[%clk 0:00:23]}  Rc2+ {[%clk 0:00:05]} 50. Ke1 {[%clk 0:00:24]}  Kxf3 {[%clk 0:00:05]} 51. Rxb7 {[%clk 0:00:24]}  Rxa2 {[%clk 0:00:05]} 52. Rf7 {[%clk 0:00:25]}  Ke4 {[%clk 0:00:05]} 53. Rxf6 {[%clk 0:00:24]}  Rxh2 {[%clk 0:00:05]} 54. Rg6 {[%clk 0:00:24]}  Rg2 {[%clk 0:00:05]} 55. Kf1 {[%clk 0:00:24]}  Rg3 {[%clk 0:00:06]} 56. Kf2 {[%clk 0:00:24]}  h4 {[%clk 0:00:06]} 57. Ra6 {[%clk 0:00:22]}  Kxd4 {[%clk 0:00:07]} 58. Ra4+ {[%clk 0:00:23]}  Ke5 {[%clk 0:00:07]} 59. Ra8 {[%clk 0:00:23]}  d4 {[%clk 0:00:07]} 60. Re8+ {[%clk 0:00:23]}  Kf5 {[%clk 0:00:08]} 61. Rf8+ {[%clk 0:00:23]}  Kg6 {[%clk 0:00:08]} 62. Rg8+ {[%clk 0:00:23]}  Kh5 {[%clk 0:00:08]} 63. Rh8+ {[%clk 0:00:22]}  Kg4 {[%clk 0:00:08]} 64. Rd8 {[%clk 0:00:23]}  Rf3+ {[%clk 0:00:08]} 65. Kg2 {[%clk 0:00:23]}  Rf4 {[%clk 0:00:08]} 66. Rd5 {[%clk 0:00:22]}  h3+ {[%clk 0:00:08]} 67. Kg1 {[%clk 0:00:22]}  Kh4 {[%clk 0:00:08]} 68. Rd8 {[%clk 0:00:22]}  g4 {[%clk 0:00:09]} 69. Rh8+ {[%clk 0:00:23]}  Kg3 {[%clk 0:00:09]} 70. Ra8 {[%clk 0:00:22]}  Rf3 {[%clk 0:00:10]} 71. Ra1 {[%clk 0:00:23]}  d3 {[%clk 0:00:09]} 72. Kh1 {[%clk 0:00:23]}  Re3 {[%clk 0:00:10]} 73. Rg1+ {[%clk 0:00:23]}  Kh4 {[%clk 0:00:10]} 74. Rf1 {[%clk 0:00:22]}  d2 {[%clk 0:00:10]} 75. Kh2 {[%clk 0:00:22]}  g3+ {[%clk 0:00:10]} 76. Kg1 {[%clk 0:00:22]}  Re1 {[%clk 0:00:10]} 77. Rxe1 {[%clk 0:00:19]}  dxe1=Q# {[%clk 0:00:11]} 0-1


[Site "https://www.chess.com"]

[Event "Titled Tuesday Blitz May 25 2021"]
[White "Shtyka, Sergey"]
[Black "Stoleriu, George"]
[WhiteFideId "4138465"]
[BlackFideId "1227505"]
[WhiteElo "2102"]
[BlackElo "2227"]
[Result "0-1"]
[Round "05"]
[TimeControl "180+1"]
[Date "2021.05.25"]
[WhiteClock "0:00:06"]
[BlackClock "0:00:08"]

1. e4 {[%clk 0:02:48]}  e6 {[%clk 0:02:58]} 2. Nf3 {[%clk 0:02:47]}  d5 {[%clk 0:02:57]} 3. e5 {[%clk 0:02:48]}  c5 {[%clk 0:02:55]} 4. b4 {[%clk 0:02:48]}  cxb4 {[%clk 0:02:56]} 5. a3 {[%clk 0:02:48]}  Nc6 {[%clk 0:02:56]} 6. axb4 {[%clk 0:02:48]}  Bxb4 {[%clk 0:02:57]} 7. c3 {[%clk 0:02:49]}  Ba5 {[%clk 0:02:58]} 8. d4 {[%clk 0:02:49]}  a6 {[%clk 0:02:57]} 9. Bd3 {[%clk 0:02:49]}  b5 {[%clk 0:02:57]} 10. O-O {[%clk 0:02:48]}  h6 {[%clk 0:02:57]} 11. Be3 {[%clk 0:02:45]}  Nge7 {[%clk 0:02:56]} 12. Qd2 {[%clk 0:02:45]}  b4 {[%clk 0:02:50]} 13. cxb4 {[%clk 0:02:42]}  Bxb4 {[%clk 0:02:51]} 14. Qe2 {[%clk 0:02:40]}  a5 {[%clk 0:02:48]} 15. Nbd2 {[%clk 0:02:39]}  O-O {[%clk 0:02:46]} 16. Nb3 {[%clk 0:02:38]}  Nf5 {[%clk 0:02:38]} 17. Bxf5 {[%clk 0:02:37]}  exf5 {[%clk 0:02:39]} 18. Rfc1 {[%clk 0:02:35]}  Qb6 {[%clk 0:02:34]} 19. Nc5 {[%clk 0:02:34]}  Be6 {[%clk 0:02:01]} 20. h4 {[%clk 0:02:29]}  Rfc8 {[%clk 0:01:59]} 21. Ne1 {[%clk 0:02:22]}  Nxd4 {[%clk 0:01:45]} 22. Bxd4 {[%clk 0:02:18]}  Bxc5 {[%clk 0:01:44]} 23. Bxc5 {[%clk 0:02:16]}  Rxc5 {[%clk 0:01:44]} 24. Rcb1 {[%clk 0:02:16]}  Qc7 {[%clk 0:01:41]} 25. Nd3 {[%clk 0:02:16]}  Rc2 {[%clk 0:01:41]} 26. Qe3 {[%clk 0:02:14]}  a4 {[%clk 0:01:30]} 27. Ra3 {[%clk 0:02:07]}  Rc3 {[%clk 0:01:25]} 28. Rba1 {[%clk 0:02:05]}  Qc4 {[%clk 0:01:21]} 29. Qd2 {[%clk 0:01:49]}  Rxa3 {[%clk 0:01:08]} 30. Rxa3 {[%clk 0:01:50]}  Qxh4 {[%clk 0:01:08]} 31. Nf4 {[%clk 0:01:38]}  Qe7 {[%clk 0:01:06]} 32. Qa2 {[%clk 0:01:34]}  Qb4 {[%clk 0:01:00]} 33. Nxd5 {[%clk 0:01:26]}  Qb7 {[%clk 0:00:25]} 34. Rd3 {[%clk 0:01:18]}  Ra5 {[%clk 0:00:20]} 35. Nf6+ {[%clk 0:01:14]}  gxf6 {[%clk 0:00:21]} 36. Rg3+ {[%clk 0:01:14]}  Kh7 {[%clk 0:00:19]} 37. Qd2 {[%clk 0:01:08]}  Rxe5 {[%clk 0:00:16]} 38. Qd8 {[%clk 0:01:08]}  Qc8 {[%clk 0:00:08]} 39. Qxf6 {[%clk 0:01:06]}  Qh8 {[%clk 0:00:09]} 40. Qh4 {[%clk 0:00:51]}  f4 {[%clk 0:00:09]} 41. Qxf4 {[%clk 0:00:49]}  Rf5 {[%clk 0:00:08]} 42. Qxa4 {[%clk 0:00:46]}  Qf6 {[%clk 0:00:05]} 43. f3 {[%clk 0:00:41]}  Rg5 {[%clk 0:00:05]} 44. Rxg5 {[%clk 0:00:38]}  Qxg5 {[%clk 0:00:05]} 45. Qe4+ {[%clk 0:00:36]}  Qg6 {[%clk 0:00:05]} 46. Qb4 {[%clk 0:00:34]}  h5 {[%clk 0:00:05]} 47. Kf2 {[%clk 0:00:33]}  Qg5 {[%clk 0:00:04]} 48. Qd4 {[%clk 0:00:32]}  h4 {[%clk 0:00:04]} 49. Qe4+ {[%clk 0:00:32]}  Bf5 {[%clk 0:00:04]} 50. Qe5 {[%clk 0:00:28]}  Kg6 {[%clk 0:00:04]} 51. Qd6+ {[%clk 0:00:28]}  f6 {[%clk 0:00:04]} 52. Qd8 {[%clk 0:00:22]}  Be6 {[%clk 0:00:04]} 53. Qe8+ {[%clk 0:00:22]}  Bf7 {[%clk 0:00:04]} 54. Qe4+ {[%clk 0:00:22]}  Kh6 {[%clk 0:00:03]} 55. Qd4 {[%clk 0:00:20]}  Qe5 {[%clk 0:00:03]} 56. Qxh4+ {[%clk 0:00:19]}  Kg7 {[%clk 0:00:04]} 57. Qg4+ {[%clk 0:00:19]}  Kf8 {[%clk 0:00:05]} 58. Qb4+ {[%clk 0:00:18]}  Kg7 {[%clk 0:00:05]} 59. Qg4+ {[%clk 0:00:18]}  Bg6 {[%clk 0:00:06]} 60. Qb4 {[%clk 0:00:18]}  Qe6 {[%clk 0:00:05]} 61. Qb7+ {[%clk 0:00:18]}  Kh6 {[%clk 0:00:05]} 62. Qb2 {[%clk 0:00:17]}  Qe5 {[%clk 0:00:05]} 63. Qd2+ {[%clk 0:00:16]}  Qg5 {[%clk 0:00:05]} 64. Qd8 {[%clk 0:00:16]}  Bh7 {[%clk 0:00:05]} 65. Qf8+ {[%clk 0:00:15]}  Qg7 {[%clk 0:00:05]} 66. Qb4 {[%clk 0:00:15]}  Qa7+ {[%clk 0:00:05]} 67. Kg3 {[%clk 0:00:13]}  Qe3 {[%clk 0:00:06]} 68. Qh4+ {[%clk 0:00:11]}  Kg6 {[%clk 0:00:06]} 69. Kh3 {[%clk 0:00:08]}  Qg5 {[%clk 0:00:06]} 70. Qe4+ {[%clk 0:00:07]}  Kh6 {[%clk 0:00:06]} 71. Qe7 {[%clk 0:00:06]}  Bf5+ {[%clk 0:00:06]} 72. g4 {[%clk 0:00:05]}  Bh7 {[%clk 0:00:05]} 73. Qf8+ {[%clk 0:00:05]}  Qg7 {[%clk 0:00:06]} 74. Qc5 {[%clk 0:00:03]}  Bg6 {[%clk 0:00:06]} 75. Qe3+ {[%clk 0:00:02]}  Kh7 {[%clk 0:00:06]} 76. f4 {[%clk 0:00:03]}  Qh6+ {[%clk 0:00:07]} 77. Kg3 {[%clk 0:00:03]}  Qg7 {[%clk 0:00:07]} 78. g5 {[%clk 0:00:03]}  f5 {[%clk 0:00:07]} 79. Qe6 {[%clk 0:00:03]}  Qf7 {[%clk 0:00:07]} 80. Qe5 {[%clk 0:00:03]}  Qb3+ {[%clk 0:00:07]} 81. Kh4 {[%clk 0:00:03]}  Qf7 {[%clk 0:00:07]} 82. Qd4 {[%clk 0:00:03]}  Kg8 {[%clk 0:00:08]} 83. Qe5 {[%clk 0:00:03]}  Qh7+ {[%clk 0:00:08]} 84. Kg3 {[%clk 0:00:03]}  Qg7 {[%clk 0:00:09]} 85. Qb8+ {[%clk 0:00:03]}  Kh7 {[%clk 0:00:09]} 86. Qb3 {[%clk 0:00:03]}  Bf7 {[%clk 0:00:09]} 87. Qe3 {[%clk 0:00:03]}  Qg6 {[%clk 0:00:09]} 88. Kh4 {[%clk 0:00:03]}  Qh5+ {[%clk 0:00:09]} 89. Kg3 {[%clk 0:00:04]}  Qg4+ {[%clk 0:00:10]} 90. Kf2 {[%clk 0:00:04]}  Kg6 {[%clk 0:00:10]} 91. Qe5 {[%clk 0:00:05]}  Kh7 {[%clk 0:00:07]} 92. Qf6 {[%clk 0:00:04]}  Qxf4+ {[%clk 0:00:07]} 93. Kg2 {[%clk 0:00:05]}  Qg4+ {[%clk 0:00:07]} 94. Kf2 {[%clk 0:00:05]}  Qf4+ {[%clk 0:00:08]} 95. Kg2 {[%clk 0:00:05]}  Bd5+ {[%clk 0:00:08]} 96. Kg1 {[%clk 0:00:06]}  Qg3+ {[%clk 0:00:08]} 97. Kf1 {[%clk 0:00:06]}  Bc4# {[%clk 0:00:08]} 0-1


[Site "https://www.chess.com"]